[Event "January 2 Late 2024"]
[Site "https://www.chess.com"]
[Date "2024.01.02"]
[Round "1"]
[White "Travadon, Loic"]
[Black "Keleberda, Tymur"]
[Result "0-1"]
[Board "154"]
[TimeControl "180+1"]
[WhiteFideId "26092131"]
[BlackFideId "14174294"]
[WhiteElo "2323"]
[BlackElo "2641"]
[WhiteTeam "FRA"]
[BlackTeam "CAN"]
[WhiteClock "0:00:03"]
[BlackClock "0:00:12"]

1. e4 {[%clk 0:03:00]}  c5 {[%clk 0:02:54]} 2. Nc3 {[%clk 0:02:59]}  d6 {[%clk 0:02:55]} 3. Nf3 {[%clk 0:02:57]}  Nf6 {[%clk 0:02:53]} 4. d4 {[%clk 0:02:57]}  cxd4 {[%clk 0:02:54]} 5. Nxd4 {[%clk 0:02:57]}  a6 {[%clk 0:02:55]} 6. Be2 {[%clk 0:02:57]}  e5 {[%clk 0:02:54]} 7. Nb3 {[%clk 0:02:56]}  Be7 {[%clk 0:02:54]} 8. Be3 {[%clk 0:02:56]}  O-O {[%clk 0:02:53]} 9. g4 {[%clk 0:02:56]}  Be6 {[%clk 0:02:41]} 10. g5 {[%clk 0:02:54]}  Nfd7 {[%clk 0:02:42]} 11. h4 {[%clk 0:02:54]}  Nc6 {[%clk 0:02:40]} 12. Nd5 {[%clk 0:02:50]}  a5 {[%clk 0:02:33]} 13. a4 {[%clk 0:02:46]}  Bxd5 {[%clk 0:02:31]} 14. exd5 {[%clk 0:02:44]}  Nb4 {[%clk 0:02:30]} 15. c3 {[%clk 0:02:41]}  Na6 {[%clk 0:02:29]} 16. Qd2 {[%clk 0:02:25]}  f5 {[%clk 0:02:12]} 17. f4 {[%clk 0:02:23]}  Qc7 {[%clk 0:02:08]} 18. O-O {[%clk 0:02:19]}  Ndc5 {[%clk 0:02:04]} 19. Nxc5 {[%clk 0:02:09]}  Nxc5 {[%clk 0:02:04]} 20. Bxc5 {[%clk 0:02:04]}  Qxc5+ {[%clk 0:02:05]} 21. Kg2 {[%clk 0:02:03]}  e4 {[%clk 0:02:04]} 22. Qd4 {[%clk 0:01:53]}  Rfc8 {[%clk 0:01:59]} 23. Qxc5 {[%clk 0:01:44]}  Rxc5 {[%clk 0:02:00]} 24. Rfd1 {[%clk 0:01:44]}  Rac8 {[%clk 0:01:58]} 25. Kf2 {[%clk 0:01:38]}  g6 {[%clk 0:01:55]} 26. h5 {[%clk 0:01:37]}  Bf8 {[%clk 0:01:52]} 27. h6 {[%clk 0:01:36]}  Be7 {[%clk 0:01:52]} 28. Ke3 {[%clk 0:01:34]}  Bd8 {[%clk 0:01:51]} 29. Bb5 {[%clk 0:01:30]}  Bb6 {[%clk 0:01:49]} 30. Ke2 {[%clk 0:01:31]}  R8c7 {[%clk 0:01:48]} 31. c4 {[%clk 0:01:30]}  Kf7 {[%clk 0:01:47]} 32. Rdb1 {[%clk 0:01:28]}  Ke7 {[%clk 0:01:46]} 33. b4 {[%clk 0:01:27]}  axb4 {[%clk 0:01:47]} 34. a5 {[%clk 0:01:26]}  Ba7 {[%clk 0:01:17]} 35. Rxb4 {[%clk 0:01:24]}  Kd8 {[%clk 0:01:15]} 36. Rab1 {[%clk 0:01:11]}  e3 {[%clk 0:01:13]} 37. Ra4 {[%clk 0:01:06]}  Re7 {[%clk 0:01:10]} 38. a6 {[%clk 0:01:06]}  Rcc7 {[%clk 0:00:50]} 39. axb7 {[%clk 0:01:05]}  Rxb7 {[%clk 0:00:51]} 40. Ra6 {[%clk 0:01:04]}  Bc5 {[%clk 0:00:49]} 41. Ra8+ {[%clk 0:01:04]}  Kc7 {[%clk 0:00:48]} 42. Rh8 {[%clk 0:01:03]}  Ra7 {[%clk 0:00:47]} 43. Bc6 {[%clk 0:01:03]}  Bb6 {[%clk 0:00:44]} 44. Rb2 {[%clk 0:00:55]}  Ra1 {[%clk 0:00:30]} 45. Rg8 {[%clk 0:00:51]}  Rh1 {[%clk 0:00:20]} 46. Rg7 {[%clk 0:00:43]}  Rxg7 {[%clk 0:00:20]} 47. hxg7 {[%clk 0:00:42]}  Rh2+ {[%clk 0:00:20]} 48. Kd3 {[%clk 0:00:29]}  Rxb2 {[%clk 0:00:19]} 49. g8=Q {[%clk 0:00:29]}  Rd2+ {[%clk 0:00:16]} 50. Kc3 {[%clk 0:00:28]}  Ba5+ {[%clk 0:00:16]} 51. Kb3 {[%clk 0:00:28]}  e2 {[%clk 0:00:11]} 52. Qf7+ {[%clk 0:00:27]}  Kb6 {[%clk 0:00:11]} 53. Qb7+ {[%clk 0:00:18]}  Kc5 {[%clk 0:00:12]} 54. Qa7+ {[%clk 0:00:13]}  Bb6 {[%clk 0:00:11]} 55. Qa3+ {[%clk 0:00:11]}  Kd4 {[%clk 0:00:11]} 56. Qa1+ {[%clk 0:00:06]}  Ke4 {[%clk 0:00:07]} 57. Qb1+ {[%clk 0:00:03]}  Kxf4 {[%clk 0:00:05]} 58. Kc3 {[%clk 0:00:03]}  Ba5+ {[%clk 0:00:05]} 59. Kb3 {[%clk 0:00:01]}  e1=Q {[%clk 0:00:05]} 60. Qxe1 {[%clk 0:00:01]}  Rd3+ {[%clk 0:00:06]} 61. Kc2 {[%clk 0:00:01]}  Bxe1 {[%clk 0:00:06]} 62. Kxd3 {[%clk 0:00:01]}  Bf2 {[%clk 0:00:07]} 63. c5 {[%clk 0:00:02]}  Bxc5 {[%clk 0:00:07]} 64. Kc4 {[%clk 0:00:02]}  Kxg5 {[%clk 0:00:07]} 65. Kd3 {[%clk 0:00:02]}  Kf4 {[%clk 0:00:08]} 66. Ke2 {[%clk 0:00:03]}  h5 {[%clk 0:00:08]} 67. Kf1 {[%clk 0:00:04]}  h4 {[%clk 0:00:08]} 68. Kg2 {[%clk 0:00:04]}  g5 {[%clk 0:00:09]} 69. Bd7 {[%clk 0:00:05]}  g4 {[%clk 0:00:09]} 70. Be6 {[%clk 0:00:05]}  h3+ {[%clk 0:00:09]} 71. Kh1 {[%clk 0:00:04]}  Bd4 {[%clk 0:00:10]} 72. Bd7 {[%clk 0:00:01]}  Be5 {[%clk 0:00:10]} 73. Bb5 {[%clk 0:00:02]}  Kg5 {[%clk 0:00:10]} 74. Be2 {[%clk 0:00:02]}  f4 {[%clk 0:00:11]} 75. Bd3 {[%clk 0:00:01]}  Kh4 {[%clk 0:00:11]} 76. Kg1 {[%clk 0:00:01]}  g3 {[%clk 0:00:11]} 77. Kh1 {[%clk 0:00:02]}  g2+ {[%clk 0:00:11]} 78. Kh2 {[%clk 0:00:03]}  f3+ {[%clk 0:00:11]} 79. Kg1 {[%clk 0:00:03]}  Bd4+ {[%clk 0:00:11]} 80. Kh2 {[%clk 0:00:03]}  g1=Q# {[%clk 0:00:12]} 0-1

[Event "January 2 Late 2024"]
[Site "https://www.chess.com"]
[Date "2024.01.02"]
[Round "1"]
[White "Bjelobrk, Igor"]
[Black "Achuthan, Aryan"]
[Result "1-0"]
[Board "157"]
[TimeControl "180+1"]
[WhiteFideId "4300726"]
[BlackFideId "30982294"]
[WhiteElo "2638"]
[BlackElo "2317"]
[WhiteTeam "AUS"]
[BlackTeam "USA"]
[WhiteClock "0:00:31"]
[BlackClock "0:00:07"]

1. d4 {[%clk 0:02:59]}  d5 {[%clk 0:03:00]} 2. c4 {[%clk 0:02:58]}  e6 {[%clk 0:02:59]} 3. Nf3 {[%clk 0:02:58]}  Be7 {[%clk 0:02:59]} 4. g3 {[%clk 0:02:58]}  Nf6 {[%clk 0:02:59]} 5. Bg2 {[%clk 0:02:58]}  O-O {[%clk 0:03:00]} 6. O-O {[%clk 0:02:58]}  dxc4 {[%clk 0:03:00]} 7. Qc2 {[%clk 0:02:57]}  Bd7 {[%clk 0:03:01]} 8. Rd1 {[%clk 0:02:57]}  Bc6 {[%clk 0:02:58]} 9. Nc3 {[%clk 0:02:57]}  a6 {[%clk 0:02:50]} 10. e4 {[%clk 0:02:56]}  b5 {[%clk 0:02:42]} 11. d5 {[%clk 0:02:53]}  exd5 {[%clk 0:02:41]} 12. e5 {[%clk 0:02:53]}  Nfd7 {[%clk 0:02:05]} 13. Nxd5 {[%clk 0:02:52]}  Bxd5 {[%clk 0:02:05]} 14. Rxd5 {[%clk 0:02:51]}  c6 {[%clk 0:02:05]} 15. Rd1 {[%clk 0:02:48]}  Qc8 {[%clk 0:01:55]} 16. Bh3 {[%clk 0:02:38]}  Qb7 {[%clk 0:01:54]} 17. Bg5 {[%clk 0:02:29]}  Re8 {[%clk 0:01:37]} 18. Bxe7 {[%clk 0:02:20]}  Rxe7 {[%clk 0:01:38]} 19. Ng5 {[%clk 0:02:21]}  Nf8 {[%clk 0:01:37]} 20. f4 {[%clk 0:02:21]}  h6 {[%clk 0:01:36]} 21. Ne4 {[%clk 0:02:20]}  Nbd7 {[%clk 0:01:30]} 22. Qf2 {[%clk 0:02:17]}  Qb6 {[%clk 0:01:25]} 23. Qxb6 {[%clk 0:02:00]}  Nxb6 {[%clk 0:01:26]} 24. Rd6 {[%clk 0:01:59]}  Rc7 {[%clk 0:01:24]} 25. Nc5 {[%clk 0:01:55]}  Nd5 {[%clk 0:01:19]} 26. Bg2 {[%clk 0:01:50]}  a5 {[%clk 0:01:03]} 27. Re1 {[%clk 0:01:32]}  Re8 {[%clk 0:00:44]} 28. Bxd5 {[%clk 0:01:30]}  cxd5 {[%clk 0:00:45]} 29. Rxd5 {[%clk 0:01:30]}  Ra8 {[%clk 0:00:38]} 30. Ne4 {[%clk 0:01:28]}  b4 {[%clk 0:00:36]} 31. Rc1 {[%clk 0:01:26]}  Ne6 {[%clk 0:00:17]} 32. f5 {[%clk 0:01:24]}  Ng5 {[%clk 0:00:17]} 33. Nxg5 {[%clk 0:01:20]}  hxg5 {[%clk 0:00:18]} 34. Kf2 {[%clk 0:01:17]}  a4 {[%clk 0:00:14]} 35. Ke3 {[%clk 0:00:42]}  b3 {[%clk 0:00:15]} 36. axb3 {[%clk 0:00:37]}  axb3 {[%clk 0:00:16]} 37. Kd4 {[%clk 0:00:37]}  Ra2 {[%clk 0:00:15]} 38. Kc3 {[%clk 0:00:38]}  g6 {[%clk 0:00:09]} 39. f6 {[%clk 0:00:37]}  Rc8 {[%clk 0:00:08]} 40. Rcd1 {[%clk 0:00:37]}  Raa8 {[%clk 0:00:04]} 41. R1d4 {[%clk 0:00:33]}  Ra4 {[%clk 0:00:04]} 42. Rd8+ {[%clk 0:00:32]}  Rxd8 {[%clk 0:00:04]} 43. Rxd8+ {[%clk 0:00:33]}  Kh7 {[%clk 0:00:05]} 44. Rf8 {[%clk 0:00:32]}  Ra1 {[%clk 0:00:02]} 45. Rxf7+ {[%clk 0:00:32]}  Kg8 {[%clk 0:00:03]} 46. Rg7+ {[%clk 0:00:32]}  Kf8 {[%clk 0:00:03]} 47. Kxc4 {[%clk 0:00:33]}  Rh1 {[%clk 0:00:04]} 48. e6 {[%clk 0:00:30]}  Rxh2 {[%clk 0:00:04]} 49. e7+ {[%clk 0:00:30]}  Ke8 {[%clk 0:00:05]} 50. Rg8+ {[%clk 0:00:31]}  Kf7 {[%clk 0:00:05]} 51. e8=Q+ {[%clk 0:00:31]}  Kxf6 {[%clk 0:00:06]} 52. Qxg6+ {[%clk 0:00:31]}  Ke5 {[%clk 0:00:07]} 53. Re8# {[%clk 0:00:31]} 1-0

[Event "January 2 Late 2024"]
[Site "https://www.chess.com"]
[Date "2024.01.02"]
[Round "1"]
[White "Kornyukov, Alexey"]
[Black "Caspi, Israel"]
[Result "0-1"]
[Board "162"]
[TimeControl "180+1"]
[WhiteFideId "4150457"]
[BlackFideId "2807394"]
[WhiteElo "2309"]
[BlackElo "2633"]
[WhiteTeam "RUS"]
[BlackTeam "ISR"]
[WhiteClock "0:00:00"]
[BlackClock "0:00:23"]

1. d4 {[%clk 0:02:55]}  f5 {[%clk 0:02:56]} 2. g3 {[%clk 0:02:52]}  Nf6 {[%clk 0:02:56]} 3. Bg2 {[%clk 0:02:53]}  g6 {[%clk 0:02:57]} 4. c3 {[%clk 0:02:51]}  Bg7 {[%clk 0:02:57]} 5. Qb3 {[%clk 0:02:51]}  Nc6 {[%clk 0:02:54]} 6. Nh3 {[%clk 0:02:46]}  d5 {[%clk 0:02:47]} 7. O-O {[%clk 0:02:42]}  O-O {[%clk 0:02:46]} 8. Nd2 {[%clk 0:02:40]}  a5 {[%clk 0:02:44]} 9. a4 {[%clk 0:02:39]}  Kh8 {[%clk 0:02:36]} 10. Nf3 {[%clk 0:02:33]}  Ne4 {[%clk 0:02:35]} 11. Bf4 {[%clk 0:02:29]}  b6 {[%clk 0:02:26]} 12. Rad1 {[%clk 0:02:27]}  Ba6 {[%clk 0:02:25]} 13. Rfe1 {[%clk 0:02:27]}  Rc8 {[%clk 0:02:23]} 14. Nhg5 {[%clk 0:02:24]}  Qd7 {[%clk 0:02:16]} 15. h4 {[%clk 0:02:20]}  h6 {[%clk 0:02:08]} 16. Nh3 {[%clk 0:02:20]}  e6 {[%clk 0:02:05]} 17. Ne5 {[%clk 0:02:12]}  Nxe5 {[%clk 0:02:05]} 18. Bxe5 {[%clk 0:02:13]}  c5 {[%clk 0:01:55]} 19. f3 {[%clk 0:02:01]}  Nf6 {[%clk 0:01:48]} 20. Qxb6 {[%clk 0:01:55]}  Rc6 {[%clk 0:01:48]} 21. Qb3 {[%clk 0:01:48]}  Nh5 {[%clk 0:01:44]} 22. Nf4 {[%clk 0:01:40]}  Nxf4 {[%clk 0:01:39]} 23. Bxf4 {[%clk 0:01:39]}  cxd4 {[%clk 0:01:38]} 24. cxd4 {[%clk 0:01:37]}  Bc4 {[%clk 0:01:38]} 25. Qe3 {[%clk 0:01:35]}  Kh7 {[%clk 0:01:37]} 26. Be5 {[%clk 0:01:25]}  Rfc8 {[%clk 0:01:35]} 27. Bxg7 {[%clk 0:01:25]}  Qxg7 {[%clk 0:01:35]} 28. Rc1 {[%clk 0:01:20]}  Ba6 {[%clk 0:01:28]} 29. Rc3 {[%clk 0:01:05]}  Rxc3 {[%clk 0:01:17]} 30. bxc3 {[%clk 0:01:03]}  Rc6 {[%clk 0:01:17]} 31. Kh2 {[%clk 0:00:55]}  Qc7 {[%clk 0:01:09]} 32. Rb1 {[%clk 0:00:51]}  Bc8 {[%clk 0:01:06]} 33. Rb3 {[%clk 0:00:48]}  Bd7 {[%clk 0:01:02]} 34. Qd3 {[%clk 0:00:32]}  Rc4 {[%clk 0:00:59]} 35. e4 {[%clk 0:00:32]}  Bxa4 {[%clk 0:00:58]} 36. Ra3 {[%clk 0:00:29]}  Bc6 {[%clk 0:00:55]} 37. exf5 {[%clk 0:00:28]}  exf5 {[%clk 0:00:53]} 38. h5 {[%clk 0:00:27]}  Be8 {[%clk 0:00:47]} 39. Bh3 {[%clk 0:00:20]}  f4 {[%clk 0:00:44]} 40. hxg6+ {[%clk 0:00:20]}  Bxg6 {[%clk 0:00:44]} 41. Bf5 {[%clk 0:00:21]}  fxg3+ {[%clk 0:00:44]} 42. Kg2 {[%clk 0:00:21]}  Rc6 {[%clk 0:00:40]} 43. Bxg6+ {[%clk 0:00:19]}  Rxg6 {[%clk 0:00:40]} 44. Qf5 {[%clk 0:00:17]}  Qe7 {[%clk 0:00:37]} 45. Ra2 {[%clk 0:00:14]}  Qh4 {[%clk 0:00:27]} 46. Qf7+ {[%clk 0:00:13]}  Rg7 {[%clk 0:00:26]} 47. Qf5+ {[%clk 0:00:13]}  Kh8 {[%clk 0:00:25]} 48. Qf8+ {[%clk 0:00:13]}  Rg8 {[%clk 0:00:25]} 49. Qd6 {[%clk 0:00:05]}  Qh2+ {[%clk 0:00:24]} 50. Kf1 {[%clk 0:00:06]}  g2+ {[%clk 0:00:24]} 51. Ke2 {[%clk 0:00:05]}  Qxd6 {[%clk 0:00:23]} 52. Kd3 {[%clk 0:00:00]}  g1=Q {[%clk 0:00:23]} 0-1

[Event "January 2 Late 2024"]
[Site "https://www.chess.com"]
[Date "2024.01.02"]
[Round "1"]
[White "Ardila, Oscar Humberto"]
[Black "Zavgorodniy, Sergiy"]
[Result "1/2-1/2"]
[Board "164"]
[TimeControl "180+1"]
[WhiteFideId "4404742"]
[BlackFideId "14110148"]
[WhiteElo "2305"]
[BlackElo "2632"]
[WhiteTeam "COL"]
[BlackTeam "UKR"]
[WhiteClock "0:00:58"]
[BlackClock "0:00:55"]

1. d4 {[%clk 0:02:14]}  d5 {[%clk 0:02:58]} 2. c3 {[%clk 0:02:14]}  Nf6 {[%clk 0:02:57]} 3. Nf3 {[%clk 0:02:15]}  Bf5 {[%clk 0:02:57]} 4. Bf4 {[%clk 0:02:15]}  e6 {[%clk 0:02:57]} 5. Nbd2 {[%clk 0:02:15]}  c5 {[%clk 0:02:57]} 6. e3 {[%clk 0:02:15]}  a6 {[%clk 0:02:57]} 7. Nh4 {[%clk 0:02:13]}  Bg4 {[%clk 0:02:57]} 8. Nhf3 {[%clk 0:02:09]}  Nc6 {[%clk 0:02:56]} 9. h3 {[%clk 0:02:09]}  Bh5 {[%clk 0:02:57]} 10. Be2 {[%clk 0:02:07]}  Bd6 {[%clk 0:02:54]} 11. Bxd6 {[%clk 0:02:07]}  Qxd6 {[%clk 0:02:55]} 12. O-O {[%clk 0:02:07]}  O-O {[%clk 0:02:54]} 13. Rc1 {[%clk 0:02:06]}  Rfd8 {[%clk 0:02:53]} 14. b3 {[%clk 0:01:58]}  Rac8 {[%clk 0:02:50]} 15. Ne1 {[%clk 0:01:54]}  Bxe2 {[%clk 0:01:27]} 16. Qxe2 {[%clk 0:01:55]}  b5 {[%clk 0:01:24]} 17. Qf3 {[%clk 0:01:49]}  e5 {[%clk 0:01:24]} 18. dxe5 {[%clk 0:01:44]}  Nxe5 {[%clk 0:01:24]} 19. Qe2 {[%clk 0:01:45]}  Ne4 {[%clk 0:01:22]} 20. Ndf3 {[%clk 0:01:40]}  Nxf3+ {[%clk 0:01:21]} 21. Nxf3 {[%clk 0:01:40]}  Rd7 {[%clk 0:01:19]} 22. Rfd1 {[%clk 0:01:40]}  Rcd8 {[%clk 0:01:19]} 23. a4 {[%clk 0:01:39]}  Qb6 {[%clk 0:01:17]} 24. axb5 {[%clk 0:01:38]}  axb5 {[%clk 0:01:18]} 25. Ne5 {[%clk 0:01:38]}  Rd6 {[%clk 0:01:17]} 26. b4 {[%clk 0:01:28]}  h6 {[%clk 0:01:11]} 27. Nd3 {[%clk 0:01:27]}  Rc8 {[%clk 0:01:05]} 28. f3 {[%clk 0:01:24]}  c4 {[%clk 0:01:01]} 29. Nf4 {[%clk 0:01:07]}  Nf6 {[%clk 0:01:00]} 30. Qf2 {[%clk 0:00:59]}  Rcd8 {[%clk 0:00:55]} 31. Rd4 {[%clk 0:00:58]} 1/2-1/2

[Event "January 2 Late 2024"]
[Site "https://www.chess.com"]
[Date "2024.01.02"]
[Round "1"]
[White "Zampronha, Wladimir Camilo"]
[Black "Espinoza Villanueva, Rodrigo"]
[Result "0-1"]
[Board "166"]
[TimeControl "180+1"]
[WhiteFideId "2103087"]
[BlackFideId "5140188"]
[WhiteElo "2305"]
[BlackElo "2629"]
[WhiteTeam "BRA"]
[BlackTeam "MEX"]
[WhiteClock "0:00:16"]
[BlackClock "0:01:00"]

1. e4 {[%clk 0:03:00]}  c5 {[%clk 0:02:59]} 2. Nf3 {[%clk 0:03:01]}  d6 {[%clk 0:02:56]} 3. d4 {[%clk 0:03:01]}  cxd4 {[%clk 0:02:57]} 4. Nxd4 {[%clk 0:03:01]}  Nf6 {[%clk 0:02:55]} 5. Nc3 {[%clk 0:03:02]}  a6 {[%clk 0:02:55]} 6. Bg5 {[%clk 0:03:02]}  e6 {[%clk 0:02:55]} 7. f4 {[%clk 0:03:02]}  Qb6 {[%clk 0:02:52]} 8. Qd2 {[%clk 0:02:56]}  Be7 {[%clk 0:02:48]} 9. O-O-O {[%clk 0:02:51]}  Nbd7 {[%clk 0:02:47]} 10. Nf3 {[%clk 0:02:23]}  h6 {[%clk 0:02:38]} 11. Bxf6 {[%clk 0:02:22]}  Nxf6 {[%clk 0:02:39]} 12. e5 {[%clk 0:02:21]}  dxe5 {[%clk 0:02:38]} 13. fxe5 {[%clk 0:02:08]}  Ng4 {[%clk 0:02:37]} 14. Ne4 {[%clk 0:01:57]}  O-O {[%clk 0:02:34]} 15. Kb1 {[%clk 0:01:49]}  Qe3 {[%clk 0:02:27]} 16. Bd3 {[%clk 0:01:41]}  Qxd2 {[%clk 0:02:23]} 17. Rxd2 {[%clk 0:01:40]}  Ne3 {[%clk 0:02:22]} 18. Nd6 {[%clk 0:01:22]}  b6 {[%clk 0:02:17]} 19. Be4 {[%clk 0:01:20]}  Ra7 {[%clk 0:02:10]} 20. Nd4 {[%clk 0:01:16]}  Bd7 {[%clk 0:02:03]} 21. b3 {[%clk 0:00:59]}  f5 {[%clk 0:01:56]} 22. Bc6 {[%clk 0:00:54]}  Bxd6 {[%clk 0:01:53]} 23. exd6 {[%clk 0:00:50]}  e5 {[%clk 0:01:53]} 24. Bxd7 {[%clk 0:00:49]}  Rxd7 {[%clk 0:01:54]} 25. Ne6 {[%clk 0:00:35]}  e4 {[%clk 0:01:52]} 26. Nxf8 {[%clk 0:00:34]}  Kxf8 {[%clk 0:01:53]} 27. g3 {[%clk 0:00:30]}  Kf7 {[%clk 0:01:51]} 28. Re1 {[%clk 0:00:30]}  Ng4 {[%clk 0:01:49]} 29. c4 {[%clk 0:00:28]}  Kf6 {[%clk 0:01:46]} 30. Kc2 {[%clk 0:00:28]}  Ne5 {[%clk 0:01:47]} 31. Kc3 {[%clk 0:00:28]}  Nf3 {[%clk 0:01:45]} 32. Red1 {[%clk 0:00:28]}  Nxd2 {[%clk 0:01:45]} 33. Rxd2 {[%clk 0:00:29]}  Ke5 {[%clk 0:01:45]} 34. b4 {[%clk 0:00:28]}  Rxd6 {[%clk 0:01:42]} 35. Rxd6 {[%clk 0:00:28]}  Kxd6 {[%clk 0:01:42]} 36. Kd4 {[%clk 0:00:28]}  g5 {[%clk 0:01:35]} 37. g4 {[%clk 0:00:27]}  fxg4 {[%clk 0:01:36]} 38. Kxe4 {[%clk 0:00:27]}  h5 {[%clk 0:01:29]} 39. Kf5 {[%clk 0:00:23]}  g3 {[%clk 0:01:08]} 40. hxg3 {[%clk 0:00:23]}  h4 {[%clk 0:01:08]} 41. gxh4 {[%clk 0:00:21]}  gxh4 {[%clk 0:01:06]} 42. Kg4 {[%clk 0:00:21]}  Ke5 {[%clk 0:01:05]} 43. Kxh4 {[%clk 0:00:20]}  Kd4 {[%clk 0:01:05]} 44. c5 {[%clk 0:00:21]}  bxc5 {[%clk 0:01:03]} 45. bxc5 {[%clk 0:00:21]}  Kxc5 {[%clk 0:01:04]} 46. Kg3 {[%clk 0:00:19]}  Kb4 {[%clk 0:01:04]} 47. Kf3 {[%clk 0:00:18]}  Ka3 {[%clk 0:01:03]} 48. Ke3 {[%clk 0:00:19]}  Kxa2 {[%clk 0:01:03]} 49. Kd3 {[%clk 0:00:19]}  Kb3 {[%clk 0:00:58]} 50. Kd2 {[%clk 0:00:19]}  Kb2 {[%clk 0:00:58]} 51. Kd3 {[%clk 0:00:19]}  a5 {[%clk 0:00:58]} 52. Kc4 {[%clk 0:00:19]}  a4 {[%clk 0:00:59]} 53. Kb4 {[%clk 0:00:16]}  a3 {[%clk 0:01:00]} 0-1

[Event "January 2 Late 2024"]
[Site "https://www.chess.com"]
[Date "2024.01.02"]
[Round "1"]
[White "Antunez Soler, Luis"]
[Black "Biernacki, Mark"]
[Result "1/2-1/2"]
[Board "167"]
[TimeControl "180+1"]
[WhiteFideId "3513335"]
[BlackFideId "2082322"]
[WhiteElo "2629"]
[BlackElo "2298"]
[WhiteTeam "CUB"]
[BlackTeam "USA"]
[WhiteClock "0:00:08"]
[BlackClock "0:00:08"]

1. e4 {[%clk 0:03:00]}  c6 {[%clk 0:02:59]} 2. d4 {[%clk 0:03:00]}  d5 {[%clk 0:03:00]} 3. Nc3 {[%clk 0:03:01]}  dxe4 {[%clk 0:02:59]} 4. Nxe4 {[%clk 0:03:02]}  Nf6 {[%clk 0:03:00]} 5. Nxf6+ {[%clk 0:03:02]}  exf6 {[%clk 0:03:01]} 6. c3 {[%clk 0:03:02]}  Bd6 {[%clk 0:03:02]} 7. Bd3 {[%clk 0:03:03]}  Na6 {[%clk 0:03:02]} 8. Qc2 {[%clk 0:03:04]}  Nc7 {[%clk 0:03:00]} 9. Ne2 {[%clk 0:03:04]}  h5 {[%clk 0:02:55]} 10. Bd2 {[%clk 0:03:04]}  Kf8 {[%clk 0:02:49]} 11. O-O-O {[%clk 0:03:03]}  g6 {[%clk 0:02:48]} 12. h3 {[%clk 0:03:00]}  Kg7 {[%clk 0:02:48]} 13. g4 {[%clk 0:02:59]}  hxg4 {[%clk 0:02:39]} 14. hxg4 {[%clk 0:02:59]}  Bxg4 {[%clk 0:02:40]} 15. Rhg1 {[%clk 0:02:54]}  Bh5 {[%clk 0:02:11]} 16. Rde1 {[%clk 0:02:54]}  Nd5 {[%clk 0:02:09]} 17. a3 {[%clk 0:02:44]}  b5 {[%clk 0:02:07]} 18. Ng3 {[%clk 0:02:39]}  Bxg3 {[%clk 0:02:06]} 19. Rxg3 {[%clk 0:02:38]}  Qd6 {[%clk 0:01:53]} 20. Reg1 {[%clk 0:02:37]}  Nf4 {[%clk 0:01:53]} 21. Bf1 {[%clk 0:02:09]}  Rae8 {[%clk 0:01:40]} 22. Kb1 {[%clk 0:01:56]}  Ne2 {[%clk 0:01:37]} 23. Bxe2 {[%clk 0:01:52]}  Rxe2 {[%clk 0:01:38]} 24. f3 {[%clk 0:01:37]}  Rhe8 {[%clk 0:01:35]} 25. Rh3 {[%clk 0:01:29]}  Rh8 {[%clk 0:01:24]} 26. Bh6+ {[%clk 0:01:26]}  Rxh6 {[%clk 0:01:12]} 27. Qxe2 {[%clk 0:01:27]}  Qf4 {[%clk 0:01:10]} 28. Qe4 {[%clk 0:01:16]}  Qd2 {[%clk 0:00:54]} 29. Qxc6 {[%clk 0:01:11]}  g5 {[%clk 0:00:35]} 30. Ka1 {[%clk 0:00:58]}  Qe3 {[%clk 0:00:22]} 31. Rf1 {[%clk 0:00:37]}  Qe2 {[%clk 0:00:20]} 32. Rg1 {[%clk 0:00:31]}  Qe3 {[%clk 0:00:17]} 33. Rd1 {[%clk 0:00:27]}  Qe2 {[%clk 0:00:15]} 34. Rc1 {[%clk 0:00:26]}  Qe3 {[%clk 0:00:15]} 35. Rb1 {[%clk 0:00:22]}  Qd3 {[%clk 0:00:12]} 36. Qe4 {[%clk 0:00:20]}  Bg6 {[%clk 0:00:09]} 37. Qxd3 {[%clk 0:00:19]}  Bxd3 {[%clk 0:00:10]} 38. Rxh6 {[%clk 0:00:18]}  Kxh6 {[%clk 0:00:10]} 39. Rg1 {[%clk 0:00:17]}  Be2 {[%clk 0:00:06]} 40. Rg3 {[%clk 0:00:13]}  f5 {[%clk 0:00:04]} 41. Kb1 {[%clk 0:00:11]}  f4 {[%clk 0:00:02]} 42. Rh3+ {[%clk 0:00:11]}  Kg6 {[%clk 0:00:03]} 43. Kc1 {[%clk 0:00:12]}  f5 {[%clk 0:00:03]} 44. Kd2 {[%clk 0:00:10]}  Bc4 {[%clk 0:00:04]} 45. Rh2 {[%clk 0:00:08]}  g4 {[%clk 0:00:05]} 46. Rg2 {[%clk 0:00:08]}  g3 {[%clk 0:00:06]} 47. Rg1 {[%clk 0:00:08]}  Bd5 {[%clk 0:00:06]} 48. Ke2 {[%clk 0:00:08]}  Kg5 {[%clk 0:00:07]} 49. Rh1 {[%clk 0:00:08]}  Bc4+ {[%clk 0:00:07]} 50. Kd2 {[%clk 0:00:08]}  Bd5 {[%clk 0:00:07]} 51. Ke2 {[%clk 0:00:07]}  Bc4+ {[%clk 0:00:08]} 52. Kd2 {[%clk 0:00:07]}  Bd5 {[%clk 0:00:08]} 53. Ke2 {[%clk 0:00:08]} 1/2-1/2

[Event "January 2 Late 2024"]
[Site "https://www.chess.com"]
[Date "2024.01.02"]
[Round "1"]
[White "Lamaze, Simon"]
[Black "Lalanne, Pablo"]
[Result "1-0"]
[Board "169"]
[TimeControl "180+1"]
[WhiteFideId "36069264"]
[BlackFideId "112151"]
[WhiteElo "2622"]
[BlackElo "2294"]
[WhiteTeam "FRA"]
[BlackTeam "ARG"]
[WhiteClock "0:01:09"]
[BlackClock "0:00:08"]

1. e4 {[%clk 0:03:00]}  c5 {[%clk 0:02:59]} 2. Nf3 {[%clk 0:03:01]}  d6 {[%clk 0:02:59]} 3. d4 {[%clk 0:03:01]}  cxd4 {[%clk 0:02:59]} 4. Nxd4 {[%clk 0:03:02]}  Nf6 {[%clk 0:02:59]} 5. Nc3 {[%clk 0:03:02]}  Nc6 {[%clk 0:02:59]} 6. Bg5 {[%clk 0:02:58]}  e6 {[%clk 0:02:59]} 7. Bb5 {[%clk 0:02:56]}  Bd7 {[%clk 0:02:58]} 8. Qd3 {[%clk 0:02:56]}  Be7 {[%clk 0:02:57]} 9. O-O-O {[%clk 0:02:53]}  O-O {[%clk 0:02:52]} 10. Rhe1 {[%clk 0:02:49]}  Qc7 {[%clk 0:02:45]} 11. Bxc6 {[%clk 0:02:48]}  bxc6 {[%clk 0:02:41]} 12. e5 {[%clk 0:02:45]}  dxe5 {[%clk 0:02:32]} 13. Nf3 {[%clk 0:02:44]}  Rfd8 {[%clk 0:02:17]} 14. Nxe5 {[%clk 0:02:42]}  Be8 {[%clk 0:02:13]} 15. Qe2 {[%clk 0:02:40]}  Nd5 {[%clk 0:02:03]} 16. Bxe7 {[%clk 0:02:37]}  Nxc3 {[%clk 0:02:01]} 17. bxc3 {[%clk 0:02:35]}  Qxe7 {[%clk 0:02:01]} 18. Rd3 {[%clk 0:02:24]}  Qa3+ {[%clk 0:01:55]} 19. Kd2 {[%clk 0:02:23]}  Qxa2 {[%clk 0:01:46]} 20. f4 {[%clk 0:01:54]}  Rd5 {[%clk 0:01:39]} 21. Rxd5 {[%clk 0:01:41]}  Qxd5+ {[%clk 0:01:31]} 22. Nd3 {[%clk 0:01:42]}  c5 {[%clk 0:01:28]} 23. Qe4 {[%clk 0:01:40]}  Qd6 {[%clk 0:01:06]} 24. Qe5 {[%clk 0:01:38]}  Rd8 {[%clk 0:01:00]} 25. Qxd6 {[%clk 0:01:36]}  Rxd6 {[%clk 0:00:59]} 26. Kc1 {[%clk 0:01:37]}  Bc6 {[%clk 0:00:53]} 27. g3 {[%clk 0:01:34]}  c4 {[%clk 0:00:52]} 28. Ne5 {[%clk 0:01:27]}  Bd5 {[%clk 0:00:51]} 29. Rd1 {[%clk 0:01:27]}  Ra6 {[%clk 0:00:43]} 30. Rd4 {[%clk 0:01:26]}  Ra1+ {[%clk 0:00:38]} 31. Kb2 {[%clk 0:01:25]}  Rh1 {[%clk 0:00:38]} 32. Nxc4 {[%clk 0:01:24]}  Rxh2 {[%clk 0:00:38]} 33. Ne5 {[%clk 0:01:22]}  f6 {[%clk 0:00:36]} 34. Nd3 {[%clk 0:01:19]}  Rg2 {[%clk 0:00:35]} 35. c4 {[%clk 0:01:19]}  Bc6 {[%clk 0:00:34]} 36. Rd6 {[%clk 0:01:19]}  Be4 {[%clk 0:00:33]} 37. Nb4 {[%clk 0:01:18]}  Kf7 {[%clk 0:00:31]} 38. Rd7+ {[%clk 0:01:16]}  Kg6 {[%clk 0:00:31]} 39. Rxa7 {[%clk 0:01:16]}  Rxg3 {[%clk 0:00:30]} 40. c5 {[%clk 0:01:14]}  h5 {[%clk 0:00:30]} 41. c6 {[%clk 0:01:14]}  e5 {[%clk 0:00:21]} 42. c7 {[%clk 0:01:09]}  Bf5 {[%clk 0:00:21]} 43. Nd5 {[%clk 0:01:09]}  Kh6 {[%clk 0:00:19]} 44. fxe5 {[%clk 0:01:08]}  fxe5 {[%clk 0:00:19]} 45. Ne7 {[%clk 0:01:09]}  Be6 {[%clk 0:00:08]} 46. Ra6 {[%clk 0:01:09]} 1-0